{"text_format":"1","workbook":"xlsx","n_sheets":3,"sheets":["Inici","Enquesta","Avaluació"],"not_rendered":{"charts":1,"images":1,"macros":1,"external_links":0,"defined_names":27,"comments":0,"pivot_tables":0},"unopened":[],"bounds":{"document_bytes":16777216,"sheet_cells":100000,"rows_first":2000,"rows_last":500,"rows_between":2000,"halvings":0,"cell_chars":16384,"cell_head_chars":4096},"cells_cut":0,"cells_raw":0,"read":"whole","date_system":"1900"}

{"sheet":"Inici","index":0,"n_rows":19,"n_cols":3,"rows_kept":19,"cut":false,"hidden":false,"merged":[[13,1,14,6],[18,3,18,6],[16,1,16,2],[18,1,18,2],[0,2,0,5],[2,1,2,6],[15,1,15,6],[16,3,16,6],[4,1,4,6],[6,1,7,6],[9,1,11,6]]}
[null,null,"Responsables:\nOficina de Cooperació al Desenvolupament. Direcció de Relacions Internacionals\nServei de Planificació i Avaluació. Coordinació d'Estratègia Corporativa i Concertació Local"]
[]
[null,"Eina d’autovaloració de la transversalitat d’estratègies municipals de cooperació al desenvolupament"]
[]
[null,"           Abans d'iniciar el test, us recomanem introduir el nom de l'ajuntament i de la persona o persones que fan l'autovaloració.          "]
[]
[null,"           Per a començar, cliqueu el botó «Test». Apareixerà una llista de 35 rúbriques agrupades per dimensions i temes, que haureu de marcar segons el nivell d'acompliment estimat: «Nul», «Baix», «Mitjà» o «Alt». És important que reviseu les 35 rúbriques i les completeu."]
[]
[]
[null,"Un cop completat el test, cliqueu el botó «Resultat». Aquesta acció obrirà un informe amb el resum agrupat per dimensions i temes, i amb una valoració relativa al nivell d'acompliment. En el cas de no assolir el 80 % de la puntuació de cada bloc, us recomanem identificar els punts de verificació negatius per a aplicar les millores oportunes. També us recomanem revisar especialment els punts clau sense verificació positiva que apareguin al resum. "]
[]
[]
[]
[null,"           Podeu desar aquest informe en format PDF i després, si escau, el podeu imprimir. Els informes es guarden amb la data corresponent per tal que se’n puguin fer diversos al llarg del temps i els pugueu comparar. L’acció «Iniciar nou test» restableix els valors inicials. "]
[]
[]
[null,"Ajuntament:"]
[]
[null,"Nom i cognom de la persona que fa el test:"]

{"sheet":"Enquesta","index":1,"n_rows":40,"n_cols":57,"rows_kept":40,"cut":false,"hidden":true,"merged":[[2,30,2,32],[2,39,2,41],[2,25,2,28],[2,36,2,37],[36,13,36,14],[31,13,31,14],[2,13,3,14],[4,13,4,14],[5,13,5,14],[6,13,6,14],[7,13,7,14],[8,13,8,14],[9,13,9,14],[10,13,10,14],[11,13,11,14],[12,13,12,14],[2,20,2,23],[23,13,23,14],[24,13,24,14],[25,13,25,14],[26,3,27,3],[26,13,26,14],[27,13,27,14],[13,13,13,14],[21,13,21,14],[22,13,22,14],[20,13,20,14],[14,13,14,14],[15,13,15,14],[16,13,16,14],[18,13,18,14],[2,3,3,3],[32,1,38,1],[32,2,36,2],[32,3,33,3],[32,13,32,14],[33,13,33,14],[34,3,35,3],[34,13,34,14],[35,13,35,14],[37,2,38,2],[37,13,37,14],[38,13,38,14],[29,13,29,14],[30,2,31,2],[4,1,17,1],[2,7,3,7],[2,8,3,8],[2,4,3,5],[23,1,31,1],[23,2,25,2],[28,2,29,2],[26,2,27,2],[17,13,17,14],[30,13,30,14],[19,13,19,14],[28,13,28,14],[0,2,0,6],[2,6,3,6],[4,2,5,2],[1,1,1,12],[18,1,22,1],[2,9,2,12],[6,2,8,2],[2,1,3,1],[2,2,3,2],[18,2,22,2],[9,2,11,2],[18,3,19,3],[14,3,15,3],[14,2,17,2],[12,2,13,2],[20,3,21,3]]}
[null,null,"Responsables:\nOficina de Cooperació al Desenvolupament. Direcció de Relacions Internacionals\nServei de Planificació i Avaluació. Coordinació d'Estratègia Corporativa i Concertació Local"]
[null,"Eina d’autovaloració de la transversalitat d’estratègies municipals de cooperació al desenvolupament (CD)"]
[null,"Dimensió","Temàtica","Ítem","Rúbrica",null,"Exemple","Element crític","Ponderació","Grau d'acompliment",null,null,null,"Observacions",null,null,null,null,null,null,"VALORS",null,null,null,null,"COMPLIMENTS",null,null,null,null,"CRITICS VAL",null,null,null,null,null,"CRITICS COM",null,null,"CRITICS_COM"]
[null,null,null,null,null,null,null,null,null,"Nul","Baix","Mitjá","Alt",null,null,null,null,null,null,null,"R","I","T","D",null,"R","I","T","D",null,"R","T","D",null,null,null,"T","D",null,"R","T","D",null,"CRITICS_NO_COMP"]
[null,"1. Lideratge fort, compromís de   \n    continuitat  i marc polític i \n    estratègic","Pla de mandat","Participació CD ",1,"L'àmbit de CD de l'ajuntament participa en el disseny del Pla de mandat.",null,null,0.33339999999999997,"l",null,null,null,null,null,"D1","T1","I1","R1",null,{"$f":"(0*ISTEXT(J5)+1/3*ISTEXT(K5)+2/3*ISTEXT(L5)+1*ISTEXT(M5)) *I5","v":0},{"$f":"SUMIFS($U$5:$U$39,$R$5:$R$39,R5)","v":0},{"$f":"SUMIFS($U$5:$U$39,$Q$5:$Q$39,Q5)","v":0},{"$f":"SUMIFS($U$5:$U$39,$P$5:$P$39,P5)","v":0},null,{"$f":"U5/SUMIFS($I$5:$I$39,$S$5:$S$39,S5)","v":0},{"$f":"V5/SUMIFS($I$5:$I$39,$R$5:$R$39,R5)","v":0},{"$f":"W5/SUMIFS($I$5:$I$39,$Q$5:$Q$39,Q5)","v":0},{"$f":"X5/SUMIFS($I$5:$I$39,$P$5:$P$39,P5)","v":0},null,{"$f":"1*(H5=\"Sí\")","v":0},{"$f":"COUNTIFS($H$5:$H$39,\"Sí\",$Q$5:$Q$39,Q5)","v":1},{"$f":"COUNTIFS($H$5:$H$39,\"Sí\",$P$5:$P$39,P5)","v":9},null,{"$f":"U5/I5","v":0},null,{"$f":"COUNTIFS($H$5:$H$39,\"Sí\",$Q$5:$Q$39,Q5,$AI$5:$AI$39,\">=0,5\")/AF5","v":0},{"$f":"COUNTIFS($H$5:$H$39,\"Sí\",$P$5:$P$39,P5,$AI$5:$AI$39,\">=0,5\")/AG5","v":0},null,{"$f":"1*(AI5>=0.5)","v":0},{"$f":"COUNTIFS($H$5:$H$39,\"Sí\",$Q$5:$Q$39,Q5,$AI$5:$AI$39,\">=0,5\")","v":0},{"$f":"COUNTIFS($H$5:$H$39,\"Sí\",$P$5:$P$39,P5,$AI$5:$AI$39,\">=0,5\")","v":0},null,{"$f":"IF(AND(AE5=1,AE5<>AN5),P5 & \" - \" & F5,\"\")","v":""},null,0,"Malauradament no heu assolit els punts que verifiquen la transversalitat d’estratègies municipals de cooperació al desenvolupament."]
[null,null,null,"Valors, visió i compromís compartits",2,"El Pla de mandat comparteix valors, visió  i compromís amb la política de CD.",null,"Sí",0.66659999999999997,"l",null,null,null,null,null,"D1","T1","I2","R2",null,{"$f":"(0*ISTEXT(J6)+1/3*ISTEXT(K6)+2/3*ISTEXT(L6)+1*ISTEXT(M6)) *I6","v":0},{"$f":"SUMIFS($U$5:$U$39,$R$5:$R$39,R6)","v":0},{"$f":"SUMIFS($U$5:$U$39,$Q$5:$Q$39,Q6)","v":0},{"$f":"SUMIFS($U$5:$U$39,$P$5:$P$39,P6)","v":0},null,{"$f":"U6/SUMIFS($I$5:$I$39,$S$5:$S$39,S6)","v":0},{"$f":"V6/SUMIFS($I$5:$I$39,$R$5:$R$39,R6)","v":0},{"$f":"W6/SUMIFS($I$5:$I$39,$Q$5:$Q$39,Q6)","v":0},{"$f":"X6/SUMIFS($I$5:$I$39,$P$5:$P$39,P6)","v":0},null,{"$f":"1*(H6=\"Sí\")","v":1},{"$f":"COUNTIFS($H$5:$H$39,\"Sí\",$Q$5:$Q$39,Q6)","v":1},{"$f":"COUNTIFS($H$5:$H$39,\"Sí\",$P$5:$P$39,P6)","v":9},null,{"$f":"U6/I6","v":0},null,0,0,null,{"$f":"1*(AI6>=0.5)","v":0},{"$f":"COUNTIFS($H$5:$H$39,\"Sí\",$Q$5:$Q$39,Q6,$AI$5:$AI$39,\">=0,5\")","v":0},{"$f":"COUNTIFS($H$5:$H$39,\"Sí\",$P$5:$P$39,P6,$AI$5:$AI$39,\">=0,5\")","v":0},null,{"$f":"IF(AND(AE6=1,AE6<>AN6),P6 & \" - \" & F6,\"\")","v":"D1 - El Pla de mandat comparteix valors, visió  i compromís amb la política de CD."},null,0.4,"Compliu els punts que verifiquen la transversalitat d’estratègies municipals de cooperació al desenvolupament. Cal, però, que reviseu els punts clau sense verificació positiva.",null,null,null,null,null,null,null,null,null,"1, 2/3 , 1/3 0"]
[null,null,"Pla director de cooperació al desenvolupament","Detecció dels actors implicats",3,"El Pla director de CD defineix clarament tots els actors implicats.","Internacional, joventut, educació, igualtat i altres polítiques sectorials, i alguns serveis interns (com els encarregats de comunicació i premsa, seguiment i transparència, etc.)  ",null,0.2,"l",null,null,null,null,null,"D1","T2","I3","R3",null,0,0,0,0,null,0,0,0,0,null,0,2,9,null,0,null,0,0,null,0,0,0,null,"",null,0.6,"Compliu els punts que verifiquen la transversalitat d’estratègies municipals de cooperació al desenvolupament. Podeu millorar els punts clau sense verificació positiva."]
[null,null,null,"Participació dels actors implicats",4,"El Pla director de CD integra tots els actors implicats en el disseny de les seves prioritats.","Internacional, joventut, educació, igualtat i altres polítiques sectorials, i alguns serveis interns (com els encarregats de comunicació i premsa, seguiment i transparència, etc.)  ","Sí",0.4,"l",null,null,null,null,null,"D1","T2","I4","R4",null,0,0,0,0,null,0,0,0,0,null,1,2,9,null,0,null,0,0,null,0,0,0,null,"D1 - El Pla director de CD integra tots els actors implicats en el disseny de les seves prioritats.",null,0.8,"Enhorabona! Compliu amb escreix els punts que verifiquen la transversalitat d’estratègies municipals de cooperació al desenvolupament."]
[null,null,null,"Objectius, valors, visió i compromís compartits",5,"El Pla director de CD comparteix objectius, valors, visió i compromís amb els actors participants.","Internacional, joventut, educació, igualtat i altres polítiques sectorials, i alguns serveis interns (com els encarregats de comunicació i premsa, seguiment i transparència, etc.)  ","Sí",0.4,"l",null,null,null,null,null,"D1","T2","I5","R5",null,0,0,0,0,null,0,0,0,0,null,1,2,9,null,0,null,0,0,null,0,0,0,null,"D1 - El Pla director de CD comparteix objectius, valors, visió i compromís amb els actors participants.",null,0,2,"xlThemeColorLight1"]
[null,null,"Altres polítiques sectorials","Sensibilització interna",6,"S'han previst actuacions de sensibilització I formació per tal que altres polítiques sectorials incorporin objectius, valors, visió i compromís de CD.","Internacional, joventut, educació, igualtat i altres polítiques sectorials, i alguns serveis interns (com els encarregats de comunicació i premsa, seguiment i transparència, etc.)  ","Sí",0.4,"l",null,null,null,null,null,"D1","T3","I6","R6",null,0,0,0,0,null,0,0,0,0,null,1,2,9,null,0,null,0,0,null,0,0,0,null,"D1 - S'han previst actuacions de sensibilització I formació per tal que altres polítiques sectorials incorporin objectius, valors, visió i compromís de CD.",null,0.4,6,"xlThemeColorAccent2"]
[null,null,null,"Objectius, valors, visió i compromís compartits ",7,"Els plans d'altres polítiques sectorials comparteixen objectius, valors, visió  i compromís amb el de CD.","Internacional, joventut, educació, igualtat i altres polítiques sectorials, i alguns serveis interns (com els encarregats de comunicació i premsa, seguiment i transparència, etc.)  ","Sí",0.4,"l",null,null,null,null,null,"D1","T3","I7","R7",null,0,0,0,0,null,0,0,0,0,null,1,2,9,null,0,null,0,0,null,0,0,0,null,"D1 - Els plans d'altres polítiques sectorials comparteixen objectius, valors, visió  i compromís amb el de CD.",null,0.6,10,"xlThemeColorAccent6"]
[null,null,null,"Complementarietat i sinergies",8,"Els plans d'altres polítiques  sectorials preveuen mecanismes de complementarietat i sinergies amb el de CD.","Internacional, joventut, educació, igualtat i altres polítiques sectorials, i alguns serveis interns (com els encarregats de comunicació i premsa, seguiment i transparència, etc.)  ",null,0.2,"l",null,null,null,null,null,"D1","T3","I8","R8",null,0,0,0,0,null,0,0,0,0,null,0,2,9,null,0,null,0,0,null,0,0,0,null,"",null,0.8,7,"xlThemeColorAccent3"]
[null,null,"Recursos humans                  i financers","Recursos humans",9,"La política de CD té suficients recursos humans previstos, tant si estan repartits en una unitat com en diverses, per a impulsar les accions previstes.",null,"Sí",0.5,"l",null,null,null,null,null,"D1","T4","I9","R9",null,0,0,0,0,null,0,0,0,0,null,1,2,9,null,0,null,0,0,null,0,0,0,null,"D1 - La política de CD té suficients recursos humans previstos, tant si estan repartits en una unitat com en diverses, per a impulsar les accions previstes."]
[null,null,null,"Recursos financers",10,"La política de CD té suficients recursos financers, tant si estan repartits en una unitat com en diverses, per a impulsar les accions previstes.",null,"Sí",0.5,"l",null,null,null,null,null,"D1","T4","I10","R10",null,0,0,0,0,null,0,0,0,0,null,1,2,9,null,0,null,0,0,null,0,0,0,null,"D1 - La política de CD té suficients recursos financers, tant si estan repartits en una unitat com en diverses, per a impulsar les accions previstes."]
[null,null,"Seguiment                             i transparència","Sistemes d'informació i seguiment",11,"La política de CD s'ha incorporat al sistema de seguiment general de l'ajuntament.","Serveis interns responsables del seguiment i l’avaluació del Pla de govern",null,0.2,"l",null,null,null,null,null,"D1","T5","I11","R11",null,0,0,0,0,null,0,0,0,0,null,0,2,9,null,0,null,0,0,null,0,0,0,null,""]
[null,null,null,null,12,"La política de CD ha desenvolupat un sistema de seguiment propi amb indicadors que involucra altres actors.","Internacional, joventut, educació, igualtat i altres polítiques sectorials","Sí",0.4,"l",null,null,null,null,null,"D1","T5","I11","R12",null,0,0,0,0,null,0,0,0,0,null,1,2,9,null,0,null,0,0,null,0,0,0,null,"D1 - La política de CD ha desenvolupat un sistema de seguiment propi amb indicadors que involucra altres actors.",null,0,"Enhorabona! Heu assolit amb escreix tots els punts clau."]
[null,null,null,"Mecanismes de documentació i valoració",13,"Durant el desplegament de la política de CD, s'informa tots els actors dels avenços de la política de CD o es documenten els avenços.","Internacional, joventut, educació, igualtat i altres polítiques sectorials",null,0.2,"l",null,null,null,null,null,"D1","T5","I12","R13",null,0,0,0,0,null,0,0,0,0,null,0,2,9,null,0,null,0,0,null,0,0,0,null,"",null,1,{"$f":"\"Existeixen \" & NUM_CRITICS_KO & \" punts clau sense verificació positiva que us recomanem atendre amb especial interès. Són aquests:\"","v":"Existeixen 20 punts clau sense verificació positiva que us recomanem atendre amb especial interès. Són aquests:"}]
[null,null,null,"Transparència",14,"Els instruments de transparència municipal permeten identificar els resultats i el seguiment de la política de CD.","Publicació al portal de Transparència dels resultats de la política de CD","Sí",0.4,"l",null,null,null,null,null,"D1","T5","I13","R14",null,0,0,0,0,null,0,0,0,0,null,1,2,9,null,0,null,0,0,null,0,0,0,null,"D1 - Els instruments de transparència municipal permeten identificar els resultats i el seguiment de la política de CD."]
[null,"2. Diàleg polític i estratègic","Relació entre actors","Canals formals de relació",15,"S'han posat en marxa espais de treball compartit per a impulsar la política de CD.","Consell de cooperació, reunions periòdiques, comissions i/o grups de treball, espai de canalització de la informació, etc.","Sí",0.5,"l",null,null,null,null,null,"D2","T6","I14","R15",null,0,0,0,0,null,0,0,0,0,null,1,3,3,null,0,null,0,0,null,0,0,0,null,"D2 - S'han posat en marxa espais de treball compartit per a impulsar la política de CD."]
[null,null,null,null,16,"Els espais de treball creats han funcionat d'acord amb la previsió (periodicitat, freqüència, utilitat).","Consell de cooperació, reunions periòdiques, comissions i/o grups de treball, espai de canalització de la informació, etc.","Sí",0.5,"l",null,null,null,null,null,"D2","T6","I14","R16",null,0,0,0,0,null,0,0,0,0,null,1,3,3,null,0,null,0,0,null,0,0,0,null,"D2 - Els espais de treball creats han funcionat d'acord amb la previsió (periodicitat, freqüència, utilitat)."]
[null,null,null,"Canals informals",17,"S'han posat en marxa canals informals de relació entre actors. ","Dinar de treball, comunicacions telefòniques o per correu electrònic, converses en altres espais, etc.",null,0.5,"l",null,null,null,null,null,"D2","T6","I15","R17",null,0,0,0,0,null,0,0,0,0,null,0,3,3,null,0,null,0,0,null,0,0,0,null,{"$f":"IF(AND(AE21=1,AE21<>AN21),P21 & \" - \" & F21,\"\")","v":""}]
[null,null,null,null,18,"Els canals informals permeten millorar el desplegament de la política de CD.","Dinar de treball, comunicacions telefòniques o per correu electrònic, converses en altres espais, etc.",null,0.5,"l",null,null,null,null,null,"D2","T6","I15","R18",null,0,0,0,0,null,0,0,0,0,null,0,3,3,null,0,null,0,0,null,0,0,0,null,""]
[null,null,null,"Reptes",19,"Com a resultat dels mecanismes formals o informals s'han definit nous reptes no previstos inicialment.","El fet de treballar conjuntament ha permès identificar col·lectius no previstos.","Sí",1,"l",null,null,null,null,null,"D2","T6","I16","R19",null,0,0,0,0,null,0,0,0,0,null,1,3,3,null,0,null,0,0,null,0,0,0,null,"D2 - Com a resultat dels mecanismes formals o informals s'han definit nous reptes no previstos inicialment."]
[null,"3. Implementació de directrius\n    i eines, recursos humans i \n    financers","Implementació de directrius i programes","Implementació de programes",20,"Els diferents programes i activitats previstos en la política de CD es despleguen comptant amb els actors involucrats.",null,"Sí",0.5,"l",null,null,null,null,null,"D3","T7","I17","R20",null,0,0,0,0,null,0,0,0,0,null,1,1,4,null,0,null,0,0,null,0,0,0,null,"D3 - Els diferents programes i activitats previstos en la política de CD es despleguen comptant amb els actors involucrats."]
[null,null,null,"Comunicació d'activitats en marxa",21,"La comunicació i el traspàs de la informació en el desplegament flueixen de manera àgil i consensuada entre els actors involucrats.",null,null,0.25,"l",null,null,null,null,null,"D3","T7","I18","R21",null,0,0,0,0,null,0,0,0,0,null,0,1,4,null,0,null,0,0,null,0,0,0,null,""]
[null,null,null,"Visions d'especialistes",22,"El desplegament dels programes i les línies de treball combinen experts sectorials i tècnics especialistes en CD.",null,null,0.25,"l",null,null,null,null,null,"D3","T7","I19","R22",null,0,0,0,0,null,0,0,0,0,null,0,1,4,null,0,null,0,0,null,0,0,0,null,""]
[null,null,"Mitjans humans","Mitjans humans",23,"Els programes i les línies de treball s'executen amb mitjans humans suficients.",null,"Sí",0.5,"l",null,null,null,null,null,"D3","T8","I20","R23",null,0,0,0,0,null,0,0,0,0,null,1,2,4,null,0,null,0,0,null,0,0,0,null,"D3 - Els programes i les línies de treball s'executen amb mitjans humans suficients."]
[null,null,null,null,24,"Els mitjans humans dedicats al desplegament de les actuacions disposen de coneixement i capacitats adients.",null,"Sí",0.5,"l",null,null,null,null,null,"D3","T8","I20","R24",null,0,0,0,0,null,0,0,0,0,null,1,2,4,null,0,null,0,0,null,0,0,0,null,"D3 - Els mitjans humans dedicats al desplegament de les actuacions disposen de coneixement i capacitats adients."]
[null,null,"Incentius i motivació","Incentius laborals",25,"Els recursos humans involucrats en projectes de CD tenen incentius laborals reconeguts.","Han estat descarregats d'altres tasques perquè es puguin dedicar als projectes internacionals; el nou projecte o tasca en l'àmbit de la CD té sentit i pot crear sinergies amb la tasca ordinària que ja es duu a terme, etc.",null,0.5,"l",null,null,null,null,null,"D3","T9","I21","R25",null,0,0,0,0,null,0,0,0,0,null,0,0,4,null,0,null,{"$error":"#DIV/0!"},0,null,0,0,0,null,""]
[null,null,null,"Reconeixement",26,"Els recursos humans involucrats en projectes de CD tenen reconeixement.","Tenen possibilitats d'aparèixer en publicacions, formar-se, viatjar en el marc dels projectes internacionals, presentació a premis i/o seminaris i jornades (com ara bones pràctiques), etc.",null,0.5,"l",null,null,null,null,null,"D3","T9","I22","R26",null,0,0,0,0,null,0,0,0,0,null,0,0,4,null,0,null,{"$error":"#DIV/0!"},0,null,0,0,0,null,""]
[null,null,"Mitjans econòmics","Intangibles",27,"Els recursos humans involucrats en projectes de CD perceben la seva participació com una eina d'aprenentatge i satisfacció personal.",null,"Sí",0.66659999999999997,"l",null,null,null,null,null,"D3","T10","I23","R27",null,0,0,0,0,null,0,0,0,0,null,1,1,4,null,0,null,0,0,null,0,0,0,null,"D3 - Els recursos humans involucrats en projectes de CD perceben la seva participació com una eina d'aprenentatge i satisfacció personal."]
[null,null,null,"Mitjans econòmics",28,"Els programes i línies de treball s'executen amb mitjans econòmics suficients.",null,null,0.33339999999999997,"l",null,null,null,null,null,"D3","T10","I24","R28",null,0,0,0,0,null,0,0,0,0,null,0,1,4,null,0,null,0,0,null,0,0,0,null,{"$f":"IF(AND(AE32=1,AE32<>AN32),P32 & \" - \" & F32,\"\")","v":""}]
[null,"4. Rendició de comptes\n     i cultura d'aprenentatge","Millora i redefinició","Mecanismes de documentació i valoració",29,"Durant el desplegament de les accions o actuacions de la política de CD es preveuen canals de documentació i valoració dels resultats que involucren tots els actors.","Internacional, joventut, educació, igualtat i altres polítiques sectorials",null,0.33339999999999997,"l",null,null,null,null,null,"D4","T11","I25","R29",null,0,0,0,0,null,0,0,0,0,null,0,3,4,null,0,null,0,0,null,0,0,0,null,""]
[null,null,null,null,30,"Al final del desplegament de la política de CD es preveuen canals de documentació i valoració dels resultats que involucren tots els actors.","Internacional, joventut, educació, igualtat i altres polítiques sectorials","Sí",0.66659999999999997,"l",null,null,null,null,null,"D4","T11","I25","R30",null,0,0,0,0,null,0,0,0,0,null,1,3,4,null,0,null,0,0,null,0,0,0,null,"D4 - Al final del desplegament de la política de CD es preveuen canals de documentació i valoració dels resultats que involucren tots els actors."]
[null,null,null,"Orientació dels reptes i les oportunitats",31,"Durant el desplegament de les accions o actuacions de la política de CD es donen a conèixer a tots els actors els reptes i les oportunitats de millora detectats.","Internacional, joventut, educació, igualtat i altres polítiques sectorials",null,0.33339999999999997,"l",null,null,null,null,null,"D4","T11","I26","R31",null,0,0,0,0,null,0,0,0,0,null,0,3,4,null,0,null,0,0,null,0,0,0,null,""]
[null,null,null,null,32,"Al final del desplegament de la política de CD es donen a conèixer a tots els actors els reptes i les oportunitats de millora detectats.","Internacional, joventut, educació, igualtat i altres polítiques sectorials","Sí",0.66659999999999997,"l",null,null,null,null,null,"D4","T11","I26","R32",null,0,0,0,0,null,0,0,0,0,null,1,3,4,null,0,null,0,0,null,0,0,0,null,"D4 - Al final del desplegament de la política de CD es donen a conèixer a tots els actors els reptes i les oportunitats de millora detectats."]
[null,null,null,"Estratègia de millora",33,"S'estableixen conjuntament actuacions concretes de millora orientades al futur.",null,"Sí",1,"l",null,null,null,null,null,"D4","T11","I27","R33",null,0,0,0,0,null,0,0,0,0,null,1,3,4,null,0,null,0,0,null,0,0,0,null,"D4 - S'estableixen conjuntament actuacions concretes de millora orientades al futur."]
[null,null,"Rendició de comptes","Rendició de comptes a la ciutadania",34,"Es fa una rendició de comptes de resultats a la ciutadania, de manera conjunta o coordinada entre tots els actors involucrats.",null,"Sí",0.66659999999999997,"l",null,null,null,null,null,"D4","T12","I28","R34",null,0,0,0,0,null,0,0,0,0,null,1,1,4,null,0,null,{"$f":"COUNTIFS($H$5:$H$39,\"Sí\",$Q$5:$Q$39,Q38,$AI$5:$AI$39,\">=0,5\")/AF38","v":0},{"$f":"COUNTIFS($H$5:$H$39,\"Sí\",$P$5:$P$39,P38,$AI$5:$AI$39,\">=0,5\")/AG38","v":0},null,0,0,0,null,"D4 - Es fa una rendició de comptes de resultats a la ciutadania, de manera conjunta o coordinada entre tots els actors involucrats."]
[null,null,null,"Responsabilitat compartida",35,"L'exercici de rendició de comptes que es fa orientat a la ciutadania comparteix responsabilitats dels èxits i fracassos.",null,null,0.33339999999999997,"l",null,null,null,null,null,"D4","T12","I29","R35",null,0,0,0,0,null,0,0,0,0,null,0,1,4,null,0,null,0,0,null,0,0,0,null,""]
[null,null,null,null,null,null,null,null,null,null,null,null,null,null,null,null,null,null,null,null,null,null,null,null,null,{"$f":"AVERAGE(Z5:Z39)","v":0},null,null,null,null,null,null,null,null,null,null,null,null,null,null,null,null,null,{"$f":"35-COUNTBLANK(AR5:AR39)","v":20}]

{"sheet":"Avaluació","index":2,"n_rows":121,"n_cols":9,"rows_kept":121,"cut":false,"hidden":true,"merged":[[92,2,92,6],[90,3,90,7],[84,2,84,7],[85,2,85,7],[86,2,86,7],[87,2,87,7],[88,2,88,7],[89,2,89,7],[69,2,69,7],[70,2,70,7],[71,2,71,7],[72,2,72,7],[83,2,83,7],[73,2,73,7],[74,2,74,7],[75,2,75,7],[76,2,76,7],[77,2,77,7],[78,2,78,7],[79,2,79,7],[80,2,80,7],[81,2,81,7],[82,2,82,7],[64,2,64,7],[65,2,65,7],[66,2,66,7],[67,2,67,7],[68,2,68,7],[58,2,58,7],[59,2,59,7],[60,2,60,7],[61,2,61,7],[62,2,62,7],[53,2,54,7],[57,2,57,7],[52,2,52,6],[56,2,56,7],[55,2,55,7],[23,2,23,4],[0,3,0,6],[1,2,1,14],[11,2,11,3],[0,1,0,2],[2,1,2,7],[12,2,13,7],[15,2,15,3],[19,2,19,4],[17,2,17,4],[21,2,21,4],[5,3,5,6],[7,3,7,6],[9,3,9,6]]}
[null,null,null,"Responsables:\nOficina de Cooperació al Desenvolupament. Direcció de Relacions Internacionals\nServei de Planificació i Avaluació. Coordinació d'Estratègia Corporativa i Concertació Local"]
[]
[null,"Autovaloració de la transversalitat d’estratègies municipals de cooperació al desenvolupament - Grau d'assoliment de l'esquesta"]
[]
[]
[null,null,"Ajuntament:",{"$f":"\"\"&ajuntament","v":""}]
[]
[null,null,"Nom i cognoms:",{"$f":"\"\"&nom_cognom","v":""}]
[]
[null,null,"Data:",{"$f":"NOW()","v":"2020-11-16T08:14:18.470"}]
[]
[null,null,"Grau d'assoliment global ",null,null,{"$f":"MITJA_TOTAL","v":0},"l",{"$f":"VLOOKUP(F12,RANG_COLORS,2)","v":2}]
[null,null,{"$f":"VLOOKUP(MITJA_TOTAL,RANG_TEXT_MITJA_TOTAL,2)","v":"Malauradament no heu assolit els punts que verifiquen la transversalitat d’estratègies municipals de cooperació al desenvolupament."}]
[]
[]
[null,null,"Grau d'assoliment per dimensions"]
[]
[null,null,"1. Lideratge fort, compromís de continuitat  i marc polític i estratègic",null,null,{"$f":"MITJA_DIM_1","v":0},"l",{"$f":"VLOOKUP(F18,RANG_COLORS,2)","v":2},{"$f":"PTG_CRITICS_D1","v":0}]
[]
[null,null,"2. Diàleg polític i estratègic",null,null,{"$f":"MITJA_DIM_2","v":0},"l",{"$f":"VLOOKUP(F20,RANG_COLORS,2)","v":2},{"$f":"PTG_CRITICS_D2","v":0}]
[]
[null,null,"3. Implementació de directrius  i eines, recursos humans i financers",null,null,{"$f":"MITJA_DIM_3","v":0},"l",{"$f":"VLOOKUP(F22,RANG_COLORS,2)","v":2},{"$f":"PTG_CRITICS_D3","v":0}]
[]
[null,null,"4. Retiment de comptes i cultura d'aprenentatge",null,null,{"$f":"MITJA_DIM_4","v":0},"l",{"$f":"VLOOKUP(F24,RANG_COLORS,2)","v":2},{"$f":"PTG_CRITICS_D4","v":0}]
[]
[]
[]
[]
[]
[]
[]
[]
[]
[]
[]
[]
[]
[]
[]
[]
[]
[]
[]
[]
[]
[]
[]
[]
[]
[]
[]
[]
[null,null,"Punts clau sense verficació positiva"]
[null,null,{"$f":"VLOOKUP(NUM_CRITICS_KO,RANG_CRITICS_TEXT,2)","v":"Existeixen 20 punts clau sense verificació positiva que us recomanem atendre amb especial interès. Són aquests:"}]
[]
[null,null,"  D1 - El Pla de mandat comparteix valors, visió  i compromís amb la política de CD."]
[null,null,"  D1 - El Pla director de CD integra tots els actors implicats en el disseny de les seves prioritats."]
[null,null,"  D1 - El Pla director de CD comparteix objectius, valors, visió i compromís amb els actors participants."]
[null,null,"  D1 - S'han previst actuacions de sensibilització I formació per tal que altres polítiques sectorials incorporin objectius, valors, visió i compromís de CD."]
[null,null,"  D1 - Els plans d'altres polítiques sectorials comparteixen objectius, valors, visió  i compromís amb el de CD."]
[null,null,"  D1 - La política de CD té suficients recursos humans previstos, tant si estan repartits en una unitat com en diverses, per a impulsar les accions previstes."]
[null,null,"  D1 - La política de CD té suficients recursos financers, tant si estan repartits en una unitat com en diverses, per a impulsar les accions previstes."]
[null,null,"  D1 - La política de CD ha desenvolupat un sistema de seguiment propi amb indicadors que involucra altres actors."]
[null,null,"  D1 - Els instruments de transparència municipal permeten identificar els resultats i el seguiment de la política de CD."]
[null,null,"  D2 - S'han posat en marxa espais de treball compartit per a impulsar la política de CD."]
[null,null,"  D2 - Els espais de treball creats han funcionat d'acord amb la previsió (periodicitat, freqüència, utilitat)."]
[null,null,"  D2 - Com a resultat dels mecanismes formals o informals s'han definit nous reptes no previstos inicialment."]
[null,null,"  D3 - Els diferents programes i activitats previstos en la política de CD es despleguen comptant amb els actors involucrats."]
[null,null,"  D3 - Els programes i les línies de treball s'executen amb mitjans humans suficients."]
[null,null,"  D3 - Els mitjans humans dedicats al desplegament de les actuacions disposen de coneixement i capacitats adients."]
[null,null,"  D3 - Els recursos humans involucrats en projectes de CD perceben la seva participació com una eina d'aprenentatge i satisfacció personal."]
[null,null,"  D4 - Al final del desplegament de la política de CD es preveuen canals de documentació i valoració dels resultats que involucren tots els actors."]
[null,null,"  D4 - Al final del desplegament de la política de CD es donen a conèixer a tots els actors els reptes i les oportunitats de millora detectats."]
[null,null,"  D4 - S'estableixen conjuntament actuacions concretes de millora orientades al futur."]
[null,null,"  D4 - Es fa una rendició de comptes de resultats a la ciutadania, de manera conjunta o coordinada entre tots els actors involucrats."]
[]
[]
[]
[]
[]
[]
[]
[]
[]
[]
[]
[]
[]
[]
[]
[]
[]
[null,null,"Assoliment i punts clau per dimensions (gràfic)"]
[]
[]
[]
[]
[]
[]
[]
[]
[]
[]
[]
[]
[]
[]
[]
[]
[]
[]
[]
[]
[]
[]
[]
[null,null,"Dimensió","% Assoliment ","% Assoliment punts clau"]
[null,null,{"$f":"C18","v":"1. Lideratge fort, compromís de continuitat  i marc polític i estratègic"},{"$f":"F18","v":0},{"$f":"I18","v":0}]
[null,null,{"$f":"C20","v":"2. Diàleg polític i estratègic"},{"$f":"F20","v":0},{"$f":"I20","v":0}]
[null,null,{"$f":"C22","v":"3. Implementació de directrius  i eines, recursos humans i financers"},{"$f":"F22","v":0},{"$f":"I22","v":0}]
[null,null,{"$f":"C24","v":"4. Retiment de comptes i cultura d'aprenentatge"},{"$f":"F24","v":0},{"$f":"I24","v":0}]